bitfinex/quotes_ETHUSD_20240722
["timestamp","ask_amount","ask_price","bid_price","bid_amount"]
[1721683569632,2.88988,3460.4,3459.7,2.89035]
[1721683570066,2.88994,3460.3,3459.7,2.89035]
[1721683570310,2.88978,3460.5,3459.9,2.89024]
[1721683570638,2.88989,3460.4,3459.8,2.89033]
[1721683570975,2.88978,3460.5,3459.8,2.89033]
[1721683571190,2.88986,3460.4,3459.9,2.89024]
[1721683571477,2.88972,3460.6,3459.9,0.6358778]
[1721683571695,2.3895,3460.9,3459.5,2.501]
[1721683571834,0.35,3460.8,3460.4,2.88976]
[1721683572034,2.88938,3461.0,3460.5,2.88973]
[1721683572234,2.88938,3461.0,3459.9,2.89023]
[1721683572463,5.7784,3461.2,3460.3,2.88988]
[1721683572663,2.88917,3461.2,3460.6,2.88965]
[1721683573082,5.33095,3461.4,3460.7,2.88958]
[1721683573083,2.88908,3461.3,3460.7,2.88958]
[1721683573588,2.88908,3461.3,3460.7,2.88953]
[1721683574052,2.88908,3461.3,3460.8,2.88945]
[1721683574236,2.88896,3461.5,3460.9,2.88936]
[1721683574438,2.88896,3461.5,3461.0,2.88933]
[1721683574986,2.88884,3461.6,3461.0,2.88928]
[1721683575132,2.88894,3461.5,3461.0,2.88928]
[1721683575334,2.8888,3461.7,3461.1,2.88924]
[1721683575559,2.88894,3461.5,3461.0,2.88933]
[1721683575763,2.8888,3461.7,3461.0,2.88927]
[1721683575970,2.88892,3461.5,3461.0,2.88927]
[1721683576347,2.88892,3461.5,3461.0,3.4960375]
[1721683577163,2.88884,3461.6,3461.1,2.88925]
[1721683577365,2.88884,3461.6,3461.0,3.4960975]
[1721683577561,2.88892,3461.5,3461.0,3.4960975]
[1721683577861,2.88892,3461.5,3461.0,2.88933]
[1721683578393,2.88872,3461.8,3461.2,2.88917]
[1721683578596,2.88876,3461.7,3461.2,2.88917]
[1721683578778,2.88886,3461.6,3461.1,2.88925]
[1721683578992,2.88875,3461.7,3461.2,2.88916]
[1721683579863,5.32284,3461.9,3461.2,2.88916]
[1721683580597,2.88875,3461.7,3461.2,3.4958983]
[1721683581481,2.88851,3462.0,3461.4,2.88895]
[1721683581664,2.88851,3462.0,3461.5,2.88891]
[1721683581861,2.7732,3462.3,3461.6,2.88883]
[1721683581862,2.88842,3462.1,3461.6,2.88883]
[1721683582292,5.31146,3462.3,3461.6,2.88883]
[1721683582293,2.88836,3462.2,3461.6,2.88877]
[1721683582495,2.88844,3462.1,3461.6,2.88877]
[1721683585391,2.4711,3460.9,3460.1,7.4]
[1721683585600,2.4711,3460.9,3459.9,2.89025]
[1721683585601,2.88971,3460.6,3459.9,2.89025]
[1721683585882,2.8895,3460.8,3459.4,7.4]
[1721683586187,2.89028,3459.9,3459.4,1.22359868]
[1721683586390,2.89028,3459.9,3459.2,2.89079]
[1721683586700,2.88987,3460.4,3459.1,2.89089]
[1721683586879,2.89015,3460.1,3459.3,2.89075]
[1721683587074,2.89015,3460.1,3459.4,2.89062]
[1721683587398,2.89015,3460.1,3459.5,0.578137]
[1721683587605,2.89014,3460.1,3459.5,0.578137]
[1721683587812,2.88967,3460.6,3459.5,0.578137]
[1721683587813,2.89017,3460.0,3459.5,0.578137]
[1721683587982,2.89017,3460.0,3458.9,2.89107]
[1721683588298,2.89017,3460.0,3459.0,0.55]
[1721683588503,2.89031,3459.9,3459.0,0.55]
[1721683588706,2.89031,3459.9,3459.0,3.441]
[1721683589083,2.89031,3459.9,3459.0,0.55]
[1721683589282,2.89031,3459.9,3459.1,0.871732]
[1721683589485,2.89038,3459.8,3459.2,0.55]
[1721683590703,2.89048,3459.7,3459.2,0.55]
[1721683591781,2.89059,3459.5,3459.2,0.55]
[1721683594803,2.89059,3459.5,3459.3,0.4312732]
[1721683595479,2.89051,3459.6,3459.2,0.55]
[1721683595786,2.89051,3459.6,3459.0,3.44098]
[1721683596122,2.89051,3459.6,3459.1,2.89091]
[1721683596277,2.89051,3459.6,3459.2,0.55]
[1721683596683,2.89059,3459.5,3459.2,0.55]
[1721683596907,2.89053,3459.6,3459.0,3.44095]
[1721683597109,2.8906,3459.5,3459.0,3.44095]
[1721683597786,2.89054,3459.6,3459.0,3.44095]
[1721683598182,2.89046,3459.7,3459.1,2.8909]
[1721683598380,2.89046,3459.7,3459.2,1.183185]
[1721683598994,2.89051,3459.6,3459.2,1.183185]
[1721683599291,2.89065,3459.5,3459.2,1.183185]
[1721683599497,2.89065,3459.5,3459.2,0.55]
[1721683599498,2.89073,3459.4,3459.2,0.55]
[1721683599720,2.89073,3459.4,3458.8,2.89111]
[1721683599721,2.89073,3459.4,3458.9,0.55]
[1721683599880,2.89073,3459.4,3458.9,2.118334]
[1721683600085,2.891,3459.0,3458.9,1.568334]
[1721683600334,2.89054,3459.6,3458.1,7.4]
[1721683600527,2.89036,3459.8,3457.8,5.39295]
[1721683600528,2.8914,3458.6,3457.8,5.39295]
[1721683600685,2.89172,3458.2,3457.9,0.539295]
[1721683600885,2.89172,3458.2,3457.6,2.89217]
[1721683601116,2.89172,3458.2,3457.7,1.793871]
[1721683601501,2.8919,3458.0,3457.7,1.793871]
[1721683601718,2.89192,3458.0,3457.7,1.793871]
[1721683601923,2.89147,3458.5,3456.8,9.6532]
[1721683602123,2.89147,3458.5,3456.4,2.501]
[1721683602124,2.89193,3457.9,3456.4,2.501]
[1721683602448,2.89239,3457.4,3456.7,2.89292]
[1721683602946,2.89239,3457.4,3456.5,4.1085]
[1721683602947,2.89253,3457.2,3456.5,4.10845]
[1721683603110,2.89253,3457.2,3456.5,7.0015]
[1721683603312,2.89239,3457.4,3456.5,4.10845]
[1721683603608,2.89244,3457.3,3456.6,1.150845]
[1721683603810,2.89245,3457.3,3456.6,4.043855]
[1721683604010,2.89233,3457.5,3456.7,2.89291]
[1721683604222,2.8924,3457.4,3456.6,1.150845]
[1721683604441,2.8924,3457.4,3456.7,3.2972975]
[1721683604640,2.8924,3457.4,3456.8,2.89282]
[1721683604819,2.89193,3457.9,3456.3,10.29321]
[1721683605022,2.89193,3457.9,3456.3,7.4]
[1721683605023,5.78547,3457.0,3456.3,7.4]
[1721683605220,2.89272,3457.0,3456.4,2.89316]
[1721683605414,2.89272,3457.0,3456.3,7.4]
[1721683605615,2.89272,3457.0,3456.3,10.29326]
[1721683605847,2.89272,3457.0,3456.3,7.4]
[1721683606007,2.89272,3457.0,3456.4,0.74]
[1721683606549,2.89252,3457.2,3456.6,2.893]
[1721683606723,2.89239,3457.4,3456.6,2.89299]
[1721683606923,2.89258,3457.2,3456.7,0.652609]
[1721683607233,2.89261,3457.1,3456.7,0.652609]
[1721683607435,2.89264,3457.1,3456.4,3.6331]
[1721683607634,2.89264,3457.1,3456.5,2.89308]
[1721683607944,2.89285,3456.8,3456.0,2.89346]
[1721683608121,2.3757,3457.0,3455.9,2.89358]
[1721683608323,2.3757,3457.0,3456.0,1.2293]
[1721683608324,5.26844,3457.0,3456.0,1.2293]
[1721683608529,2.89306,3456.6,3456.0,1.2293]
[1721683609343,2.89306,3456.6,3456.0,4.1228]
[1721683609534,2.89298,3456.7,3456.0,4.1228]
[1721683609734,2.89298,3456.7,3456.1,0.701646]
[1721683610045,5.26845,3457.0,3456.1,3.595076]
[1721683610443,5.26845,3457.0,3456.3,2.89325]
[1721683610649,2.89287,3456.8,3456.1,3.595076]
[1721683610846,2.89287,3456.8,3456.2,2.89334]
[1721683611026,2.89287,3456.8,3456.2,3.6651246]
[1721683611228,2.89293,3456.7,3456.2,0.7717846]
[1721683611430,2.89282,3456.9,3456.2,3.6651246]
[1721683611627,5.26842,3457.0,3456.2,2.89334]
[1721683611815,5.26842,3457.0,3456.2,5.78662]
[1721683612016,2.89278,3456.9,3456.3,2.89325]
[1721683612635,2.3757,3457.0,3456.3,2.89325]
[1721683612851,5.26843,3457.0,3456.4,2.89316]
[1721683613039,8.16118,3457.0,3456.4,2.89316]
[1721683613239,8.16118,3457.0,3456.2,2.89328]
[1721683613240,2.89286,3456.8,3456.2,2.89328]
[1721683613555,5.26843,3457.0,3456.2,2.89328]
[1721683613726,2.3757,3457.0,3456.6,2.89301]
[1721683614336,2.3757,3457.0,3456.5,2.89308]
[1721683614618,2.3757,3457.0,3456.5,2.89304]
[1721683615123,2.3757,3457.0,3456.7,2.89286]
[1721683615350,2.3757,3457.0,3456.5,2.89306]
[1721683615540,2.3757,3457.0,3456.7,2.89292]
[1721683615829,2.2588,3457.7,3456.7,0.578598]
[1721683616029,2.2588,3457.7,3457.6,2.89217]
[1721683616231,2.2588,3458.2,3457.2,2.89249]
[1721683616428,2.6088,3458.2,3458.1,2.89176]
[1721683616754,2.2894,3458.7,3458.2,2.89165]
[1721683616952,2.2894,3458.7,3458.4,2.8915]
[1721683617140,2.2894,3458.7,3458.2,2.89165]
[1721683617324,2.2894,3458.7,3458.5,2.89141]
[1721683617524,2.2894,3458.7,3458.3,2.89151]
[1721683617724,2.2894,3458.7,3458.4,2.89145]
[1721683617930,2.2894,3458.7,3458.4,5.7829]
[1721683618164,2.89087,3459.2,3458.6,2.89129]
[1721683618326,0.881917,3459.1,3458.6,2.89129]
[1721683618624,2.89107,3459.0,3457.8,2.89199]
[1721683618823,2.89107,3459.0,3458.4,2.89145]
[1721683619163,0.8742177,3459.0,3457.9,2.89188]
[1721683619342,2.4283,3459.3,3458.6,2.89134]
[1721683619542,2.4283,3459.3,3458.0,2.89182]
[1721683619543,2.89094,3459.1,3458.4,2.89148]
[1721683619942,8.2099,3459.3,3458.6,2.89128]
[1721683620262,0.531907,3459.2,3458.7,2.89125]
[1721683620630,0.531907,3459.2,3458.4,2.89144]
[1721683620829,5.31912,3459.3,3458.4,2.89143]
[1721683620830,3.7651527,3459.1,3458.4,2.89143]
[1721683621040,0.8741827,3459.1,3458.6,2.89132]
[1721683621244,0.8741827,3459.1,3458.7,2.89121]
[1721683621973,2.4283,3459.3,3458.7,2.89121]
[1721683622136,2.7783,3459.3,3458.7,2.89121]
[1721683622333,2.7783,3459.3,3458.8,2.89109]
[1721683622667,2.7783,3459.3,3458.7,2.89121]
[1721683622668,2.7783,3459.3,3458.9,2.89108]
[1721683622855,5.66906,3459.3,3458.7,2.89118]
[1721683623062,0.566906,3459.2,3458.7,2.89118]
[1721683623246,0.566906,3459.2,3458.7,2.89119]
[1721683623455,0.566906,3459.2,3458.1,2.89174]
[1721683623657,5.31906,3459.3,3458.1,2.89174]
[1721683623842,2.4283,3459.3,3458.4,2.8915]
[1721683624038,2.89102,3459.0,3458.4,5.78288]
[1721683624274,2.89088,3459.2,3458.4,2.89144]
[1721683624579,0.35,3459.2,3458.7,2.89125]
[1721683624736,2.4283,3459.3,3458.7,2.89125]
[1721683625136,2.4283,3459.3,3458.9,2.89108]
[1721683625572,2.4283,3459.3,3459.0,2.89096]
[1721683626149,2.83,3459.9,3458.0,7.4]
[1721683626150,2.3813,3459.8,3459.6,2.89045]
[1721683626469,2.3813,3459.8,3459.4,2.89061]
[1721683626671,2.3813,3460.7,3459.4,0.289061]
[1721683626872,5.62095,3460.7,3460.1,2.89003]
[1721683627075,2.7313,3460.7,3460.1,2.89003]
[1721683627242,2.3813,3460.7,3460.1,2.89003]
[1721683627442,2.3813,3460.7,3460.3,2.88987]
[1721683627776,2.644141,3460.7,3460.3,2.88987]
[1721683627960,2.644141,3460.7,3460.3,2.88988]
[1721683628165,2.644141,3460.7,3460.4,2.88979]
[1721683628342,2.3813,3460.7,3460.5,2.8897]
[1721683628973,2.3813,3460.7,3460.6,2.88967]
[1721683629272,2.3813,3461.2,3460.6,2.8896]
[1721683629474,3.129127,3461.2,3460.6,2.8896]
[1721683629776,3.129127,3461.2,3460.8,2.88942]
[1721683629998,2.3813,3461.2,3460.9,2.88941]
[1721683630145,2.3813,3461.2,3461.0,2.88933]
[1721683630477,2.3813,3461.2,3460.7,2.88952]
[1721683630680,2.88893,3461.5,3460.3,2.88988]
[1721683630861,5.27009,3461.7,3461.1,2.88924]
[1721683631175,2.3813,3461.7,3461.2,5.77824]
[1721683631350,2.3813,3461.7,3461.3,2.88903]
[1721683631549,2.3813,3461.7,3461.3,2.88901]
[1721683631762,2.3813,3461.7,3461.4,2.88899]
[1721683631976,2.88848,3462.1,3461.5,2.88887]
[1721683632177,0.288848,3462.0,3461.5,2.88887]
[1721683632965,0.288848,3462.0,3461.6,2.88883]
[1721683633349,2.3813,3462.2,3461.6,2.88878]
[1721683633547,2.3813,3462.2,3461.7,2.88875]
[1721683633778,5.26964,3462.2,3461.7,2.88875]
[1721683634458,5.26964,3462.2,3461.4,2.88897]
[1721683634654,5.26964,3462.2,3461.5,0.55]
[1721683634856,5.26964,3462.2,3461.6,2.88882]
[1721683635063,2.3813,3462.2,3461.7,3.4387]
[1721683635249,2.3813,3462.2,3461.8,2.88865]
[1721683635663,2.3813,3462.2,3461.4,2.88897]
[1721683635875,5.26964,3462.2,3461.5,3.43886]
[1721683636255,5.26964,3462.2,3461.6,2.88882]
[1721683636557,5.26964,3462.2,3461.7,3.43875]
[1721683636775,5.26964,3462.2,3461.7,0.55]
[1721683637283,5.26964,3462.2,3461.7,3.43874]
[1721683637690,5.26964,3462.2,3461.7,0.55]
[1721683638781,2.3813,3462.2,3461.7,3.43873]
[1721683639081,2.88817,3462.4,3461.7,0.55]
[1721683639466,2.88829,3462.3,3461.7,0.55]
[1721683639655,2.88833,3462.2,3461.7,0.55]
[1721683640178,2.88825,3462.3,3461.8,2.88866]
[1721683640400,2.8121,3462.7,3461.8,2.88866]
[1721683640609,2.88815,3462.5,3461.9,2.88853]
[1721683641861,2.88815,3462.5,3461.8,2.8886]
[1721683641862,2.88809,3462.5,3461.8,2.8886]
[1721683642264,5.88808,3462.6,3462.0,2.8885]
[1721683642509,2.88808,3462.5,3462.0,2.8885]
[1721683642668,3.08862344,3462.7,3462.0,3.52116]
[1721683642669,2.4621,3462.7,3462.0,3.52116]
[1721683642995,2.4621,3462.7,3462.3,2.88825]
[1721683643160,2.4621,3462.7,3462.3,2.88819]
[1721683643363,2.46099513,3462.7,3462.3,2.88822]
[1721683643686,2.88776,3462.9,3462.3,2.88819]
[1721683644288,2.88773,3463.0,3462.2,2.88833]
[1721683644487,2.88773,3463.0,3462.4,2.88815]
[1721683644852,2.88773,3463.0,3462.2,3.177163]
[1721683644853,2.88773,3463.0,3462.2,3.177123]
[1721683645054,2.88754,3463.2,3462.4,2.88812]
[1721683645250,2.88772,3463.0,3462.4,2.88812]
[1721683645455,2.88772,3463.0,3462.4,2.8881]
[1721683645673,2.88772,3463.0,3462.4,2.88809]
[1721683645874,2.88763,3463.1,3462.5,2.88803]
[1721683646082,3.0,3463.0,3462.5,2.88803]
[1721683646862,3.0,3463.0,3462.3,0.55]
[1721683647067,5.88754,3463.2,3462.6,2.88799]
[1721683647289,2.88754,3463.2,3462.6,3.520605]
[1721683647454,5.34434,3463.3,3461.9,7.4]
[1721683647455,2.88778,3462.9,3461.9,7.4]
[1721683647657,2.88898,3461.5,3461.0,7.4]
[1721683647855,2.88909,3461.3,3460.5,2.88968]
[1721683648088,2.88901,3461.4,3460.8,2.88946]
[1721683648356,2.88897,3461.5,3460.8,2.88949]
[1721683648566,2.4569,3461.8,3460.6,7.3580258]
[1721683648567,2.88921,3461.2,3460.6,7.3580258]
[1721683648778,2.88921,3461.2,3460.6,2.88959]
[1721683650589,2.88921,3461.2,3460.6,5.77919]
[1721683650797,2.88921,3461.2,3460.7,3.4963678]
[1721683650970,2.88921,3461.2,3460.8,0.55]
[1721683653175,2.88905,3461.4,3460.8,3.43949]
[1721683653510,2.88918,3461.2,3460.8,0.55]
[1721683653661,2.88918,3461.2,3460.8,0.95464378]
[1721683653862,5.77811,3461.4,3460.8,0.55]
[1721683654086,2.88909,3461.3,3460.8,3.43946]
[1721683655294,2.88918,3461.2,3460.8,0.55]
[1721683655968,2.88908,3461.4,3460.8,3.43949]
[1721683656173,2.8892,3461.2,3460.8,0.55]
[1721683657061,2.88879,3461.7,3460.8,0.55]
[1721683657264,2.88911,3461.3,3460.7,0.55]
[1721683657465,2.88911,3461.3,3460.0,2.501]
[1721683657466,2.89023,3460.0,3459.7,7.4]
[1721683657781,2.4503,3460.4,3459.2,2.89076]
[1721683657782,2.8904,3459.8,3459.2,2.89076]
[1721683658107,2.89051,3459.6,3458.9,7.4]
[1721683658275,2.89072,3459.4,3459.0,0.74]
[1721683658478,2.89072,3459.4,3458.7,2.89121]
[1721683658479,2.89072,3459.4,3458.8,2.89115]
[1721683658792,2.89064,3459.5,3458.9,2.89108]
[1721683659115,2.8906,3459.5,3459.0,0.289108]
[1721683659404,0.534017,3460.3,3459.0,3.180098]
[1721683659405,2.89048,3459.7,3459.0,3.180098]
[1721683659704,2.89043,3459.7,3459.1,2.89087]
[1721683660005,2.89019,3460.0,3459.2,0.6070988]
[1721683660173,2.89039,3459.8,3459.2,0.6070988]
[1721683660381,2.89039,3459.8,3459.1,2.89087]
[1721683660708,2.89039,3459.8,3459.2,2.89083]
[1721683660868,2.89039,3459.8,3459.3,0.55]
[1721683661895,2.89042,3459.7,3459.0,0.55]
[1721683662207,2.89042,3459.7,3459.1,3.235015]
[1721683662366,2.89042,3459.7,3459.2,0.55]
[1721683662566,2.89026,3459.9,3459.2,3.44083]
[1721683663682,2.89043,3459.7,3459.2,0.55]
[1721683663911,2.89043,3459.7,3459.3,0.3785065]
[1721683664069,2.89043,3459.7,3459.4,0.55]
[1721683664603,2.89043,3459.7,3459.2,0.55]
[1721683664803,2.89051,3459.6,3459.2,0.55]
[1721683664969,2.89067,3459.4,3459.2,0.55]
[1721683665166,5.5013,3460.4,3458.6,2.8913]
[1721683665377,5.5013,3460.4,3458.7,0.53923]
[1721683665378,2.89089,3459.2,3458.7,0.53923]
[1721683665583,2.89089,3459.2,3458.6,3.0]
[1721683666171,2.89089,3459.2,3458.6,5.89129]
[1721683666604,2.4393,3459.2,3458.3,7.4]
[1721683666788,2.89128,3458.7,3458.3,7.4]
[1721683666995,2.89095,3459.1,3458.4,0.74]
[1721683667308,2.89114,3458.9,3458.4,0.74]
[1721683668181,2.89114,3458.9,3458.5,0.55]
[1721683669901,2.89134,3458.6,3458.5,0.55]
[1721683670691,2.89134,3458.6,3457.2,2.501]
[1721683670692,5.33015,3459.2,3457.2,2.501]
[1721683670877,5.33015,3459.2,3457.7,2.89207]
[1721683670878,0.35,3458.9,3457.7,2.89207]
[1721683671078,2.89159,3458.3,3457.7,2.89207]
[1721683671883,5.78294,3458.5,3457.8,2.89196]
[1721683672085,5.78294,3458.5,3457.7,2.89207]
[1721683672086,2.8916,3458.3,3457.9,1.128403]
[1721683672309,2.89144,3458.5,3457.9,1.128403]
[1721683672310,5.78294,3458.5,3457.9,1.128403]
[1721683672524,2.89144,3458.5,3457.9,4.020323]
[1721683672973,5.78293,3458.5,3457.9,4.020273]
[1721683673174,5.78293,3458.5,3458.0,0.6912323]
[1721683673175,2.89144,3458.5,3458.0,0.6912323]
[1721683673479,2.4393,3459.2,3458.1,2.89172]
[1721683673687,2.89111,3458.9,3458.4,2.89145]
[1721683673882,2.89101,3459.0,3458.5,0.55]
[1721683674090,2.89119,3458.8,3458.5,0.399165]
[1721683674475,2.89132,3458.7,3458.5,0.399165]
[1721683674804,2.89132,3458.7,3458.2,0.55]
[1721683675001,2.89115,3458.9,3458.2,3.4416]
[1721683675203,2.89105,3459.0,3458.2,3.4416]
[1721683675204,2.89117,3458.8,3458.3,2.89159]
[1721683675381,2.89117,3458.8,3458.4,1.183334]
[1721683675587,2.89117,3458.8,3458.5,0.55]
[1721683675789,2.89101,3459.0,3458.5,0.55]
[1721683676096,2.89119,3458.8,3458.5,0.55]
[1721683676497,2.4393,3459.2,3458.5,0.55]
[1721683676498,2.89109,3458.9,3458.5,0.55]
[1721683677383,5.78196,3459.1,3458.5,1.2466464]
[1721683677612,2.89096,3459.1,3458.5,0.55]
[1721683678522,2.89113,3458.9,3458.5,0.55]
[1721683679831,2.891,3459.0,3458.5,1.18331]
[1721683679994,2.891,3459.0,3458.5,3.44142]
[1721683680334,2.89111,3458.9,3458.5,0.55]
[1721683680625,2.89111,3458.9,3458.4,2.8915]
[1721683680797,2.89101,3459.0,3458.5,0.87619892]
[1721683681194,2.89109,3458.9,3458.5,0.87619892]
[1721683681620,2.89092,3459.1,3458.6,2.89133]
[1721683681913,2.89092,3459.1,3458.5,0.87619892]
[1721683682118,2.89105,3459.0,3458.5,0.87619892]
[1721683682682,2.89105,3459.0,3458.5,3.76756892]
[1721683682881,2.89105,3459.0,3458.6,0.37675689]
[1721683683597,5.33019,3459.2,3458.6,3.26808689]
[1721683683815,0.35,3459.1,3458.6,3.26808689]
[1721683684115,3.24096,3459.1,3458.6,0.37675689]
[1721683684337,0.35,3459.1,3458.6,0.37675689]
[1721683684507,0.35,3459.1,3458.5,0.55]
[1721683684707,3.24092,3459.1,3458.5,3.44142]
[1721683685037,0.35,3459.1,3458.6,2.89134]
[1721683685236,3.24098,3459.1,3458.5,3.44142]
[1721683685734,3.24098,3459.1,3458.6,2.8913]
[1721683686105,6.13197,3459.1,3458.6,2.8913]
[1721683686320,2.89101,3459.0,3458.5,4.074669]
[1721683686528,0.35,3459.1,3458.5,4.074669]
[1721683686529,2.89093,3459.1,3458.5,4.074669]
[1721683686737,0.35,3459.1,3458.6,2.89128]
[1721683687815,3.24092,3459.1,3458.6,2.89128]
[1721683688334,0.35,3459.1,3458.7,2.89119]
[1721683688537,0.35,3459.1,3458.7,0.6965759]
[1721683688731,2.4393,3459.2,3458.8,3.44117]
[1721683688942,2.4393,3459.2,3458.8,0.55]
[1721683689232,2.7893,3459.2,3458.8,0.55]
[1721683690042,5.68014,3459.2,3458.8,0.55]
[1721683691036,2.7893,3459.2,3458.8,0.55]
[1721683691235,5.68015,3459.2,3458.8,0.55]
[1721683691440,2.7893,3459.2,3458.8,0.55]
[1721683691635,2.4393,3459.2,3458.8,3.44112]
[1721683693920,2.4046,3459.7,3459.2,2.89078]
[1721683694245,2.4046,3459.7,3459.2,2.89079]
[1721683694246,0.35,3459.5,3459.2,2.89079]
[1721683694608,5.29509,3459.7,3459.2,2.89079]
[1721683694955,5.64509,3459.7,3459.2,2.89079]
[1721683696014,8.53559,3459.7,3459.2,2.89079]
[1721683696345,2.89055,3459.6,3459.1,2.89091]
[1721683696940,2.89055,3459.6,3459.1,3.234951]
[1721683699320,2.89055,3459.6,3459.1,0.344091]
[1721683699917,2.89055,3459.6,3459.1,3.234951]
[1721683700833,2.89055,3459.6,3459.1,0.344091]
[1721683701049,2.89059,3459.5,3459.1,0.344091]
[1721683701421,2.89059,3459.5,3459.0,2.89096]
[1721683701748,2.89059,3459.5,3459.1,0.55]
[1721683702345,5.29504,3459.7,3459.1,0.55]
[1721683702346,2.89057,3459.6,3459.1,0.55]
[1721683702515,2.89063,3459.5,3459.0,0.55]
[1721683703368,2.89063,3459.5,3459.0,3.441]
[1721683703573,2.89063,3459.5,3459.0,4.074212]
[1721683704151,2.89063,3459.5,3459.0,4.074182]
[1721683705541,2.89063,3459.5,3459.0,4.074202]
[1721683705542,2.89059,3459.5,3459.0,4.074202]
[1721683706720,2.89059,3459.5,3459.0,1.183212]
[1721683707319,2.89068,3459.4,3459.0,1.183212]
[1721683709062,2.89059,3459.5,3459.0,4.074212]
[1721683709232,2.89059,3459.5,3459.0,3.441]
[1721683710252,2.89067,3459.4,3459.0,0.55]
[1721683710553,0.58669973,3459.5,3459.0,3.441]
[1721683711322,0.58669973,3459.5,3459.0,4.074217]
[1721683711549,3.47728973,3459.5,3459.0,4.074217]
[1721683713556,3.47728973,3459.5,3459.0,1.183217]
[1721683713557,2.89067,3459.4,3459.0,1.183217]
[1721683714133,3.47728973,3459.5,3459.0,4.074197]
[1721683715265,2.89067,3459.4,3459.0,1.183217]
[1721683717234,5.78141,3459.4,3459.0,1.183217]
[1721683717434,0.58669973,3459.5,3459.0,1.183217]
[1721683717679,0.58669973,3460.0,3459.9,5.7805]
[1721683717936,2.88963,3460.7,3460.5,2.88975]
[1721683717937,0.58669973,3460.6,3460.5,2.88975]
[1721683718241,0.58669973,3461.2,3461.0,2.88928]
[1721683718460,0.58669973,3461.4,3461.1,2.88925]
[1721683718635,2.88892,3461.5,3461.0,1.041]
[1721683718835,0.58669973,3461.6,3461.0,1.041]
[1721683718836,3.47553973,3461.6,3461.0,3.93029]
[1721683719035,2.88897,3461.5,3461.0,1.041]
[1721683719237,0.58669973,3461.6,3461.2,3.93016]
[1721683719540,0.58669973,3461.6,3461.0,0.682]
[1721683719541,3.47528973,3461.9,3461.4,3.92997]
[1721683719740,0.8800496,3462.0,3461.4,3.92997]
[1721683719741,0.58669973,3462.0,3461.5,0.55]
[1721683719943,3.47520973,3462.0,3461.5,0.55]
[1721683720156,2.88855,3462.0,3461.5,0.55]
[1721683720563,2.88855,3462.0,3461.4,3.43899]
[1721683721573,2.88855,3462.0,3461.4,3.43893]
[1721683721866,2.88855,3462.0,3461.5,2.88891]
[1721683722067,2.88855,3462.0,3461.6,0.55]
[1721683722464,3.47490973,3462.4,3461.6,0.55]
[1721683722669,2.88842,3462.1,3461.6,0.55]
[1721683723053,5.77658,3462.3,3461.6,3.43883]
[1721683723351,2.88848,3462.1,3461.6,0.55]
[1721683723982,2.88856,3462.0,3461.6,0.55]
[1721683724296,2.88856,3462.0,3459.5,3.48560063]
[1721683724297,2.88856,3462.0,3461.4,0.55]
[1721683725198,2.88897,3461.5,3460.8,2.8895]
[1721683725539,2.88904,3461.4,3460.9,2.8894]
[1721683725845,2.8888,3461.7,3460.9,2.8894]
[1721683725846,2.88893,3461.5,3460.9,2.8894]
[1721683726050,2.88885,3461.6,3461.0,0.877898]
[1721683726264,2.88885,3461.6,3461.0,3.767168]
[1721683726464,2.88885,3461.6,3461.1,0.55]
[1721683726855,2.88892,3461.5,3461.1,0.55]
[1721683727397,2.88869,3461.8,3461.2,3.3208768]
[1721683727712,2.88869,3461.8,3461.0,3.767188]
[1721683727713,2.88869,3461.8,3461.3,3.43907]
[1721683727995,2.88852,3462.0,3461.3,3.43907]
[1721683728196,2.8881,3462.5,3461.3,6.32809]
[1721683728197,2.88861,3461.9,3461.3,6.32809]
[1721683728488,2.88868,3461.8,3461.3,0.55]
[1721683728721,2.88859,3461.9,3461.3,2.88903]
[1721683728979,2.88859,3461.9,3461.4,0.55]
[1721683729162,5.77694,3462.1,3461.4,4.126755]
[1721683729344,5.77695,3462.1,3461.4,4.126755]
[1721683729544,2.88852,3462.0,3461.4,4.126755]
[1721683729747,2.88852,3462.0,3461.5,2.88889]
[1721683730156,2.88841,3462.2,3461.5,3.46090006]
[1721683730379,3.23841,3462.2,3461.6,2.88876]
[1721683730577,2.88841,3462.2,3461.6,2.88876]
[1721683730922,2.88842,3462.1,3461.6,2.88876]
[1721683731400,2.8884,3462.2,3461.5,0.57201006]
[1721683731621,2.88859,3461.9,3461.5,0.57201006]
[1721683731924,2.88844,3462.1,3461.6,2.88878]
[1721683732262,2.88835,3462.2,3461.7,2.88872]
[1721683732913,2.88817,3462.4,3461.7,2.88867]
[1721683733134,2.8883,3462.3,3461.7,2.88867]
[1721683733675,2.8883,3462.3,3461.8,2.88866]
[1721683734577,2.88835,3462.2,3461.5,2.88886]
[1721683734779,2.88835,3462.2,3461.7,2.88874]
[1721683735212,2.88835,3462.2,3461.6,3.474206]
[1721683735397,2.88835,3462.2,3461.7,3.43875]
[1721683736103,2.88826,3462.3,3461.8,2.88864]
[1721683736313,0.35,3462.3,3461.8,2.88862]
[1721683736623,0.35,3462.3,3461.8,3.5798816]
[1721683736811,0.35,3462.3,3461.9,2.88853]
[1721683737121,2.88816,3462.5,3462.0,2.88849]
[1721683737934,2.888,3462.6,3462.1,2.88836]